[Event "ISR-ch Women 2018"]
[Site "Ma'alot-Tarshih"]
[Date "2018.12.12"]
[Round "1"]
[White "Shvayger, Yuliya"]
[Black "Vardi, Shlomit"]
[Result "1-0"]
[ECO "B06"]
[WhiteElo "2393"]
[BlackElo "1910"]
[Annotator "ChessBase"]
[PlyCount "58"]
[EventDate "2018.12.12"]
[EventType "swiss"]
[EventCountry "ISR"]
[SourceTitle "playchess.com"]
[Source "ChessBase"]
[SourceQuality "1"]
[TimeControl "40/5400+30:1800+30"]

1. e4 {[%emt 0:00:00]} d6 {[%emt 0:00:00]} 2. d4 {[%emt 0:00:00]} g6 {[%emt 0:00:00]} 3. Nc3 {[%emt 0:00:00]} Bg7 {[%emt 0:00:00]} 4. Be3 {[%emt 0:00:11]} c6 {[%emt 0:00:00]} 5. Qd2 {[%emt 0:00:35]} b5 {[%emt 0:01:28]} 6. Bd3 {[%emt 0:02:59]} Qc7 {[%emt 0:03:45]} 7. Nce2 {[%emt 0:16:57]} a6 {[%emt 0:06:49]} 8. a4 {[%emt 0:07:39]} Bb7 {[%emt 0:01:21]} 9. Nf3 {[%emt 0:00:14]} c5 {[%emt 0:01:45]} 10. c3 {[%emt 0:03:05]} Nf6 {[%emt 0:02:24]} 11. Ng3 {[%emt 0:06:17]} h5 {[%emt 0:02:45]} 12. h4 {[%emt 0:09:15]} Nbd7 {[%emt 0:08:46]} 13. O-O {[%emt 0:02:53]} c4 {[%emt 0:00:37]} 14. Bc2 {[%emt 0:00:06]} Ng4 {[%emt 0:00:36]} 15. Ng5 {[%emt 0:03:23]} e5 {[%emt 0:08:14]} 16. d5 {[%emt 0:06:14]} O-O {[%emt 0:01:49]} 17. Bd1 {[%emt 0:03:14]} Nc5 {[%emt 0:02:23]} 18. Bxc5 {[%emt 0:13:20]} Qxc5 {[%emt 0:00:51]} 19. Bxg4 {[%emt 0:00:17]} hxg4 {[%emt 0:00:14]} 20. Qe2 {[%emt 0:00:18]} Bc8 {[%emt 0:01:24]} 21. axb5 {[%emt 0:00:21]} Qxb5 {[%emt 0:01:55]} 22. b4 {[%emt 0:03:37]} Bd7 {[%emt 0:09:06]} 23. f3 {[%emt 0:02:22]} Qb6+ {[%emt 0:06:33]} 24. Kh2 {[%emt 0:00:30]} Bh6 {[%emt 0:02:16]} 25. fxg4 {[%emt 0:01:29]} Bxg5 {[%emt 0:07:34]} 26. hxg5 {[%emt 0:00:06]} Kg7 {[%emt 0:00:26]} 27. Nh1 {[%emt 0:03:48]} Rh8+ {[%emt 0:01:50]} 28. Kg3 {[%emt 0:00:02]} a5 {[%emt 0:04:20]} 29. Qf3 {[%emt 0:15:18]} Be8 {[%emt 0:25:19]} 1-0

[Event "ISR-ch Women 2018"]
[Site "Ma'alot-Tarshih"]
[Date "2018.12.12"]
[Round "1"]
[White "Ovechkin, Lilia"]
[Black "Reprun, Nadejda"]
[Result "1/2-1/2"]
[ECO "D00"]
[WhiteElo "1779"]
[BlackElo "2016"]
[Annotator "NA RC"]
[PlyCount "50"]
[EventDate "2018.12.12"]
[EventType "swiss"]
[EventCountry "ISR"]
[SourceTitle "playchess.com"]
[Source "ChessBase"]
[SourceQuality "1"]
[TimeControl "40/5400+30:1800+30"]

{[%evp 8,50,19,6,17,6,18,32767,-3,-8,-3,32767,32767,32767,32767,32767,0,32767,32767,32767,0,0,2,32767,-19,-16,-22,-10,-13,-22,-18,-22,-23,-18,-18,-20,-19,-11,-1,-26,-21,-13,-15,-20,-24]} 1. d4 {[%emt 0:00:00]} d5 {[%emt 0:00:00]} 2. Bf4 {[%emt 0:01:05]} Nf6 {[%emt 0:01:17]} 3. Nc3 {[%emt 0:00:59]} c6 {[%emt 0:01:38]} 4. e3 {[%emt 0:02:12]} Bf5 {[%emt 0:02:08] D00: 1 d4 d5: Unusual lines} 5. Bd3 {[%emt 0:02:22] LiveBook: 13 Games} Bxd3 {[%emt 0:02:26]} 6. Qxd3 {[%emt 0:00:28]} Nbd7 {[%emt 0:01:36]} 7. Nge2 {[%emt 0:06:07]} e6 {[%emt 0:02:49]} 8. e4 {[%emt 0:01:21]} Nxe4 {[%emt 0:05:46]} 9. Nxe4 {[%emt 0:00:34]} dxe4 {[%emt 0:00:05]} 10. Qxe4 {[%emt 0:00:22]} Nf6 {[%emt 0:01:26]} 11. Qd3 {[%emt 0:04:23]} Be7 {[%emt 0:02:09]} 12. O-O {[%emt 0:06:20]} O-O $146 {[%emt 0:02:04]} 13. Rfd1 {[%emt 0:01:25]} Qd7 {[%emt 0:13:24]} 14. Nc3 {[%emt 0:08:25]} Nd5 {[%emt 0:03:04]} 15. Bc1 {[%emt 0:06:28]} Nxc3 {[%emt 0:03:00]} 16. Qxc3 {[%emt 0:18:21]} Rfd8 {[%emt 0:01:38]} 17. Rd3 {[%emt 0:00:44]} Bf6 {[%emt 0:04:56]} 18. Be3 {[%emt 0:01:13]} Qd5 {[%emt 0:02:54]} 19. Qb3 {[%emt 0:01:40]} Rd7 {[%emt 0:01:56]} 20. Qxd5 {[%emt 0:10:46]} cxd5 {[%emt 0:00:23]} 21. Bf4 {[%emt 0:02:16]} Rc8 {[%emt 0:01:48]} 22. c3 {[%emt 0:01:49]} Be7 {[%emt 0:04:52]} 23. Re1 {[%emt 0:01:37]} Bd6 {[%emt 0:01:25]} 24. Bxd6 {[%emt 0:02:49]} Rxd6 {[%emt 0:00:06]} 25. f4 {[%emt 0:00:24]} h5 $11 {[%emt 0:14:15]} 1/2-1/2

[Event "ISR-ch Women 2018"]
[Site "Ma'alot-Tarshih"]
[Date "2018.12.12"]
[Round "1"]
[White "Orian, Noga"]
[Black "Buzukashvili, Sofia"]
[Result "0-1"]
[ECO "E61"]
[WhiteElo "1343"]
[BlackElo "1963"]
[Annotator "NA"]
[PlyCount "148"]
[EventDate "2018.12.12"]
[EventType "swiss"]
[EventCountry "ISR"]
[SourceTitle "playchess.com"]
[Source "ChessBase"]
[SourceQuality "1"]
[TimeControl "40/5400+30:1800+30"]

1. d4 {[%emt 0:00:00]} Nf6 {[%emt 0:00:00]} 2. e3 {[%emt 0:00:00]} g6 {[%emt 0:00:23]} 3. Nf3 {[%emt 0:00:33]} d6 {[%emt 0:00:41]} 4. c4 {[%emt 0:00:45]} Bg7 {[%emt 0:00:27]} 5. Nc3 {[%emt 0:00:24]} O-O {[%emt 0:00:35]} 6. b3 {[%emt 0:00:24] E61: King's Indian: Early deviations for White, including Smyslov System} (6. Be2 Nbd7 7. d5 e5 8. dxe6 fxe6 9. O-O e5 10. b3 Kh8 11. Bb2 Qe7 12. Rc1 Nc5 13. b4 Nce4 14. Nxe4 Nxe4 15. Nd2 Nxd2 16. Qxd2 Bd7 17. c5 d5 18. Qxd5 Bc6 19. Qc4 a6 20. Qg4 Rf5 21. Rcd1 Rg5 {0-1 (21) Harikrishna,P (2763)-Nakamura,H (2787) chess.com INT 2016}) 6... a5 {[%emt 0:08:19]} 7. Bd3 {[%emt 0:10:43]} Na6 $146 {[%emt 0:02:29]} ({Predecessor:} 7... c5 8. h3 Nc6 9. d5 Nxd5 10. Nxd5 Bxa1 11. O-O Nb4 12. Nxb4 axb4 13. Qc2 Bg7 14. Rd1 {0-1 (35) Podvin,A (1377)-Heymann,A (2025) La Fere 2011}) 8. Bb2 {[%emt 0:11:06]} Re8 {[%emt 0:13:28]} 9. e4 {[%emt 0:11:45]} Nd7 {[%emt 0:05:01]} 10. O-O {[%emt 0:03:14]} e5 {[%emt 0:02:45]} 11. d5 {[%emt 0:02:44]} Ndc5 {[%emt 0:04:07]} 12. Ne1 {[%emt 0:06:28]} f5 {[%emt 0:07:31]} 13. f3 {[%emt 0:02:32]} f4 {[%emt 0:05:09]} 14. Ba3 {[%emt 0:13:58]} Nd7 {[%emt 0:09:12]} 15. Qd2 {[%emt 0:03:14]} Qh4 {[%emt 0:08:02]} 16. Qf2 {[%emt 0:07:49]} Qg5 {[%emt 0:05:24]} 17. Bc2 {[%emt 0:05:07]} Bf6 {[%emt 0:08:33]} 18. Nd3 {[%emt 0:01:57]} b6 {[%emt 0:00:22]} 19. Nb5 {[%emt 0:03:50]} Qh5 {[%emt 0:05:10]} 20. Rfd1 {[%emt 0:01:58]} Bh4 {[%emt 0:00:49]} 21. Qe2 {[%emt 0:00:49]} ({White should play} 21. g3 $11 Bg5 22. Kg2) 21... Ndc5 {[%emt 0:02:51]} 22. Bxc5 {[%emt 0:01:49]} bxc5 {[%emt 0:00:36]} 23. Nf2 {[%emt 0:01:14]} Re7 {[%emt 0:01:32]} 24. h3 {[%emt 0:02:27]} Qg5 {[%emt 0:00:25]} 25. Kf1 {[%emt 0:01:11]} Qg3 {[%emt 0:00:39]} 26. Kg1 $1 {[%emt 0:01:15]} h5 {[%emt 0:00:47]} 27. Nh1 {[%emt 0:01:53]} Qg5 {[%emt 0:00:07]} 28. Kf1 {[%emt 0:00:07]} Qf6 {[%emt 0:00:52]} 29. Nf2 {[%emt 0:00:18]} g5 {[%emt 0:00:30]} 30. Ke1 {[%emt 0:02:04]} Rg7 {[%emt 0:03:23]} 31. Kd2 {[%emt 0:00:42]} Kf7 {[%emt 0:00:49]} 32. Rg1 {[%emt 0:00:45]} Bd7 {[%emt 0:00:06]} 33. Nc3 {[%emt 0:00:12]} Rag8 {[%emt 0:00:15]} 34. Rac1 {[%emt 0:00:33]} Nb4 {[%emt 0:01:00]} 35. Rb1 {[%emt 0:00:45]} g4 {[%emt 0:01:41]} 36. hxg4 {[%emt 0:01:55]} hxg4 {[%emt 0:00:26]} 37. Rgf1 {[%emt 0:00:56]} gxf3 {[%emt 0:00:56]} 38. gxf3 {[%emt 0:00:03]} Rg2 {[%emt 0:00:09]} 39. a3 {[%emt 0:01:03]} Nxc2 {[%emt 0:01:29]} 40. Kxc2 {[%emt 0:00:04]} Rh2 {[%emt 0:01:59]} 41. Ncd1 {[%emt 0:30:48]} Rgg2 $2 {[%emt 0:30:13]} (41... Bh3 42. Kc3 Bxf1 43. Qxf1 Rgg2) 42. a4 {[%emt 0:00:55]} Bg3 {[%emt 0:00:11]} 43. Rb2 {[%emt 0:00:03]} Qh4 {[%emt 0:00:09]} 44. Kd3 $1 {[%emt 0:00:11]} Bh3 $2 {[%emt 0:00:34]} 45. Kc3 $1 {[%emt 0:00:34] [#]} Kf6 {[%emt 0:00:04]} (45... Bg4 $1 $19 {[%mdl 512]} 46. fxg4 (46. Nxg4 Rxe2) 46... Bxf2 47. Nxf2 Qg3+ 48. Qd3 Rxf2 49. Rbxf2 Rxf2 50. Rxf2 Qxf2) 46. Kd3 {[%emt 0:00:07]} Kf7 {[%emt 0:00:07]} (46... Bxf2 $19 47. Rxf2 Qg3) 47. Kc3 {[%emt 0:00:06] [#]} Bd7 $2 {[%emt 0:01:47]} 48. Kd3 {[%emt 0:00:24]} Qh5 {[%emt 0:00:03]} 49. Kc3 {[%emt 0:00:33]} Qh4 {[%emt 0:01:00]} (49... Bh4 $19 50. Kc2 Rg3) 50. Kd3 {[%emt 0:00:08]} Bg4 {[%emt 0:00:05]} 51. Kc3 {[%emt 0:02:27]} Bxf3 {[%emt 0:01:04]} 52. Qxf3 {[%emt 0:00:05] [#]} Bxf2 $1 {[%emt 0:00:09]} 53. Rbxf2 {[%emt 0:00:59]} Rg3 {[%emt 0:00:14]} 54. Rxh2 $19 {[%emt 0:00:30]} Rxf3+ {[%emt 0:00:27]} 55. Rxf3 {[%emt 0:00:09]} Qxh2 {[%emt 0:00:03]} 56. Rf2 {[%emt 0:00:45]} Qg1 {[%emt 0:00:04]} 57. Kc2 {[%emt 0:00:37]} Qg3 {[%emt 0:00:07]} 58. Re2 {[%emt 0:00:29]} Kf6 {[%emt 0:01:15]} 59. Nc3 {[%emt 0:00:30]} f3 {[%emt 0:00:10]} 60. Rd2 {[%emt 0:00:32]} f2 {[%emt 0:00:26]} 61. Rxf2+ {[%emt 0:00:29]} Qxf2+ {[%emt 0:00:05]} 62. Kd3 {[%emt 0:00:15]} Qf3+ {[%emt 0:00:05]} 63. Kc2 {[%emt 0:00:04]} Kg5 {[%emt 0:00:22]} 64. Kb2 {[%emt 0:00:07]} Kf4 {[%emt 0:00:04]} 65. Nb5 {[%emt 0:00:28]} Qxe4 {[%emt 0:00:32]} 66. Nxc7 {[%emt 0:00:11]} Qe2+ {[%emt 0:00:10]} 67. Kc3 {[%emt 0:00:11]} Qe1+ {[%emt 0:00:06]} 68. Kc2 {[%emt 0:00:06]} Ke3 {[%emt 0:00:37]} 69. Nb5 {[%emt 0:00:27]} Qd2+ {[%emt 0:00:06]} 70. Kb1 {[%emt 0:00:09]} Kf3 {[%emt 0:01:26]} 71. Nxd6 {[%emt 0:00:18]} e4 {[%emt 0:00:03]} 72. b4 {[%emt 0:00:59]} e3 {[%emt 0:00:04]} 73. Nf5 {[%emt 0:00:29]} e2 {[%emt 0:00:39]} 74. Nh4+ {[%emt 0:00:08]} Kf2 {[%emt 0:00:03]} 0-1

[Event "ISR-ch Women 2018"]
[Site "Ma'alot-Tarshih"]
[Date "2018.12.13"]
[Round "2"]
[White "Reprun, Nadejda"]
[Black "Haitovich, Avital"]
[Result "1/2-1/2"]
[ECO "B77"]
[WhiteElo "2016"]
[BlackElo "1979"]
[Annotator "NA"]
[PlyCount "83"]
[EventDate "2018.12.12"]
[EventType "swiss"]
[EventCountry "ISR"]
[SourceTitle "playchess.com"]
[Source "ChessBase"]
[SourceQuality "1"]
[TimeControl "40/5400+30:1800+30"]

1. e4 {[%emt 0:00:00]} c5 {[%emt 0:00:00]} 2. Nf3 {[%emt 0:00:00]} d6 {[%emt 0:00:00]} 3. d4 {[%emt 0:00:00]} cxd4 {[%emt 0:00:00]} 4. Nxd4 {[%emt 0:00:00]} Nf6 {[%emt 0:00:00]} 5. Nc3 {[%emt 0:00:00]} g6 {[%emt 0:00:07]} 6. Be3 {[%emt 0:00:06]} Bg7 {[%emt 0:00:33]} 7. f3 {[%emt 0:00:13]} O-O {[%emt 0:00:10]} 8. Qd2 {[%emt 0:00:09]} Nc6 {[%emt 0:00:11]} 9. Bc4 {[%emt 0:00:25]} Bd7 {[%emt 0:00:09]} 10. O-O-O {[%emt 0:00:24]} Rb8 {[%emt 0:00:15]} 11. Bb3 {[%emt 0:00:44]} Na5 {[%emt 0:00:48]} 12. Kb1 {[%emt 0:00:43]} b5 {[%emt 0:01:42]} 13. h4 {[%emt 0:00:35]} Nc4 {[%emt 0:07:44]} 14. Bxc4 {[%emt 0:00:24]} bxc4 {[%emt 0:00:03]} 15. Ka1 {[%emt 0:00:22]} Qb6 {[%emt 0:07:26] LiveBook: 6 Games} 16. Rb1 {[%emt 0:01:21]} Qa5 {[%emt 0:01:36]} 17. h5 {[%emt 0:01:57]} Rb4 {[%emt 0:59:37]} 18. hxg6 {[%emt 0:23:50]} fxg6 {[%emt 0:00:31]} 19. Bh6 {[%emt 0:11:56]} Bxh6 $16 {[%emt 0:01:59]} 20. Qxh6 {[%emt 0:02:13]} Rf7 {[%emt 0:00:37]} 21. Qe3 {[%emt 0:03:07]} Qc5 {[%emt 0:03:07]} 22. Qg1 {[%emt 0:06:34]} e5 {[%emt 0:01:43]} 23. Nde2 {[%emt 0:00:44]} Qxg1 {[%emt 0:00:54]} 24. Rhxg1 {[%emt 0:00:50]} Bc6 {[%emt 0:03:12]} 25. Rgd1 {[%emt 0:00:47]} Rd7 {[%emt 0:01:15]} 26. Rd2 {[%emt 0:07:15]} d5 {[%emt 0:04:10]} 27. exd5 {[%emt 0:01:31]} Nxd5 {[%emt 0:00:03]} 28. Nxd5 {[%emt 0:01:52]} Rxd5 {[%emt 0:00:03]} 29. Rxd5 {[%emt 0:00:18]} Bxd5 {[%emt 0:00:01]} 30. Nc3 {[%emt 0:00:19]} Be6 {[%emt 0:06:27]} 31. Re1 {[%emt 0:00:19]} Bf5 {[%emt 0:00:04]} 32. Kb1 {[%emt 0:00:30]} Rb7 {[%emt 0:00:48]} 33. Rxe5 {[%emt 0:00:25]} Rd7 {[%emt 0:00:09]} 34. Kc1 {[%emt 0:01:19]} h5 {[%emt 0:00:12]} 35. Rd5 {[%emt 0:08:56]} Rxd5 {[%emt 0:01:16]} 36. Nxd5 {[%emt 0:00:02]} Kf7 {[%emt 0:00:06]} 37. Ne3 {[%emt 0:00:33]} Be6 {[%emt 0:00:01]} 38. Kd2 {[%emt 0:08:32]} Kf6 {[%emt 0:00:02]} 39. Nd1 {[%emt 0:01:37]} Ke5 {[%emt 0:01:14]} 40. Ke3 {[%emt 0:00:12]} Bf5 {[%emt 0:01:13]} 41. c3 {[%emt 0:32:51]} Bb1 {[%emt 0:06:43]} 42. a3 {[%emt 0:00:00]} 1/2-1/2

[Event "ISR-ch Women 2018"]
[Site "Ma'alot-Tarshih"]
[Date "2018.12.13"]
[Round "2"]
[White "Vardi, Shlomit"]
[Black "Ovechkin, Lilia"]
[Result "1-0"]
[ECO "D00"]
[WhiteElo "1910"]
[BlackElo "1779"]
[Annotator "NA"]
[PlyCount "103"]
[EventDate "2018.12.12"]
[EventType "swiss"]
[EventCountry "ISR"]
[SourceTitle "playchess.com"]
[Source "ChessBase"]
[SourceQuality "1"]
[TimeControl "40/5400+30:1800+30"]

1. e4 {[%emt 0:00:00]} d5 {[%emt 0:02:03]} 2. d4 {[%emt 0:00:00]} Nf6 {[%emt 0:09:00]} 3. e5 {[%emt 0:02:52]} Nfd7 {[%emt 0:00:53]} 4. Bd3 {[%emt 0:01:52]} g6 {[%emt 0:00:50]} 5. h4 {[%emt 0:11:31]} Bg7 {[%emt 0:07:39]} 6. h5 {[%emt 0:00:36]} O-O {[%emt 0:01:41]} (6... c5 $16 {was called for.}) 7. hxg6 {[%emt 0:04:07]} hxg6 {[%emt 0:14:40]} 8. Qf3 {[%emt 0:05:15]} Re8 {[%emt 0:15:43]} (8... Nxe5 $142 9. dxe5 Nc6) 9. e6 {[%emt 0:08:53]} (9. Qg3 $142) 9... Nf6 {[%emt 0:10:20]} 10. exf7+ {[%emt 0:04:03]} Kxf7 {[%emt 0:00:13]} 11. Qg3 {[%emt 0:04:56]} Bf5 {[%emt 0:02:50]} 12. Nf3 {[%emt 0:01:29]} Rh8 {[%emt 0:05:31]} 13. Ng5+ {[%emt 0:03:48]} ({Weaker is} 13. Ne5+ Ke6 $18) 13... Ke8 {[%emt 0:00:53]} 14. Rxh8+ {[%emt 0:02:13]} Bxh8 {[%emt 0:00:03]} 15. Bxf5 {[%emt 0:00:55]} gxf5 {[%emt 0:01:47]} 16. Qh3 {[%emt 0:00:25]} Kd7 $18 {[%emt 0:23:54]} (16... Nc6 $142 17. c3 Qc8 18. Qxh8+ Kd7) 17. Qxf5+ {[%emt 0:05:59]} Kc6 {[%emt 0:00:00]} 18. Bf4 {[%emt 0:09:21]} Qd7 {[%emt 0:00:00]} 19. Qd3 {[%emt 0:04:02]} b6 {[%emt 0:00:00]} 20. Nf7 {[%emt 0:02:15]} Qe6+ {[%emt 0:00:00]} 21. Be5 {[%emt 0:16:19]} Nbd7 {[%emt 0:00:00]} 22. Qc3+ {[%emt 0:01:29]} Nc5 {[%emt 0:00:00]} 23. Ng5 {[%emt 0:03:20]} Qf5 {[%emt 0:00:00]} 24. Nf3 {[%emt 0:03:04]} Nfe4 {[%emt 0:00:00]} 25. Qe3 {[%emt 0:00:33]} Nd7 {[%emt 0:00:00]} 26. c4 {[%emt 0:01:36]} Bxe5 {[%emt 0:00:39]} 27. cxd5+ {[%emt 0:00:14]} Kxd5 {[%emt 0:00:30]} 28. dxe5 {[%emt 0:01:10]} c5 {[%emt 0:00:57]} 29. Nc3+ {[%emt 0:00:31]} Nxc3 {[%emt 0:00:21]} 30. bxc3 {[%emt 0:00:08]} Kc6 {[%emt 0:01:53]} 31. O-O-O {[%emt 0:00:59]} b5 {[%emt 0:01:00]} 32. e6 {[%emt 0:00:34]} Nb6 {[%emt 0:01:17]} 33. g4 {[%emt 0:00:21]} Qf6 {[%emt 0:00:42]} 34. Qe4+ {[%emt 0:00:34]} Kc7 {[%emt 0:00:21]} 35. Qe5+ {[%emt 0:00:36]} Qxe5 {[%emt 0:00:33]} 36. Nxe5 {[%emt 0:00:05]} Rf8 {[%emt 0:00:49]} 37. Nf7 {[%emt 0:00:12]} Rg8 {[%emt 0:00:14]} 38. g5 {[%emt 0:00:14]} Rg6 {[%emt 0:00:13]} 39. Re1 {[%emt 0:01:16]} Nc4 {[%emt 0:01:03]} 40. f4 {[%emt 0:00:22]} Nd6 {[%emt 0:00:27]} 41. Re5 {[%emt 0:31:42]} Nc4 {[%emt 0:05:40]} 42. Re2 {[%emt 0:00:00]} Rg7 {[%emt 0:03:14]} 43. f5 {[%emt 0:00:00]} Rh7 {[%emt 0:04:47]} 44. f6 {[%emt 0:00:00]} Rh1+ {[%emt 0:02:31]} 45. Kc2 {[%emt 0:00:00]} Na3+ {[%emt 0:00:24]} 46. Kd3 {[%emt 0:00:00]} Rh3+ {[%emt 0:02:15]} 47. Re3 {[%emt 0:00:00]} c4+ {[%emt 0:00:35]} 48. Ke4 {[%emt 0:00:00]} Rxe3+ {[%emt 0:01:43]} 49. Kxe3 {[%emt 0:00:00]} exf6 {[%emt 0:01:01]} 50. g6 {[%emt 0:00:00]} b4 {[%emt 0:00:40]} 51. cxb4 {[%emt 0:00:00]} c3 {[%emt 0:00:38]} 52. g7 {[%emt 0:06:09]} 1-0

[Event "ISR-ch Women 2018"]
[Site "Ma'alot-Tarshih"]
[Date "2018.12.13"]
[Round "2"]
[White "Brusilovski, Lena"]
[Black "Levitan, Ronit"]
[Result "0-1"]
[ECO "C54"]
[WhiteElo "1886"]
[BlackElo "1875"]
[Annotator "NA"]
[PlyCount "74"]
[EventDate "2018.12.12"]
[EventType "swiss"]
[EventCountry "ISR"]
[SourceTitle "playchess.com"]
[Source "ChessBase"]
[SourceQuality "1"]
[TimeControl "40/5400+30:1800+30"]

1. e4 {[%emt 0:00:00]} e5 {[%emt 0:00:00]} 2. Nf3 {[%emt 0:01:17]} Nc6 {[%emt 0:00:00]} 3. Bc4 {[%emt 0:01:40]} Bc5 {[%emt 0:00:00]} 4. c3 {[%emt 0:01:34]} Nf6 {[%emt 0:00:00]} 5. d3 {[%emt 0:00:50]} d6 {[%emt 0:00:22]} 6. h3 {[%emt 0:01:48]} Bb6 {[%emt 0:02:09]} 7. Bb3 {[%emt 0:02:18]} h6 {[%emt 0:02:34]} 8. Nbd2 {[%emt 0:02:33]} Ne7 {[%emt 0:00:14]} 9. Nc4 {[%emt 0:00:43]} c6 {[%emt 0:02:56]} 10. Nxb6 {[%emt 0:00:57]} Qxb6 {[%emt 0:00:11]} 11. Be3 {[%emt 0:01:17]} c5 {[%emt 0:02:49]} 12. Ba4+ {[%emt 0:01:04]} Bd7 {[%emt 0:01:00]} 13. b4 {[%emt 0:00:42]} Qc7 {[%emt 0:01:39]} 14. O-O {[%emt 0:03:05]} O-O {[%emt 0:08:37]} 15. Rc1 {[%emt 0:03:38]} b5 {[%emt 0:04:50]} 16. Bc2 $11 {[%emt 0:00:38]} a5 {[%emt 0:01:45]} (16... c4 $11 {keeps the balance.}) 17. bxc5 {[%emt 0:03:34]} dxc5 {[%emt 0:00:20]} 18. Bb1 {[%emt 0:09:49]} ({White should play} 18. d4 $16) 18... Rfd8 {[%emt 0:08:07]} 19. Qe2 {[%emt 0:01:02]} Be6 {[%emt 0:09:32]} 20. Nd2 {[%emt 0:03:02]} Ng6 {[%emt 0:02:37]} 21. Rfd1 {[%emt 0:04:27]} Rac8 {[%emt 0:02:55]} 22. d4 {[%emt 0:01:54]} cxd4 {[%emt 0:01:32]} 23. cxd4 {[%emt 0:00:14]} Qxc1 {[%emt 0:01:55]} 24. Rxc1 {[%emt 0:00:43]} Rxc1+ {[%emt 0:00:05]} 25. Nf1 {[%emt 0:01:41]} Rxb1 {[%emt 0:00:41]} 26. d5 {[%emt 0:00:44]} Nxd5 {[%emt 0:15:04]} 27. Qd3 {[%emt 0:06:10]} Rxf1+ {[%emt 0:02:26]} 28. Kxf1 {[%emt 0:01:46]} Nxe3+ {[%emt 0:00:34]} 29. Qxe3 {[%emt 0:00:24]} Nf4 {[%emt 0:00:47]} 30. Kg1 {[%emt 0:01:11]} Bxa2 {[%emt 0:11:34]} 31. Qb6 {[%emt 0:01:47]} Rd1+ {[%emt 0:00:46]} 32. Kh2 {[%emt 0:00:11]} b4 {[%emt 0:02:20]} 33. Qxa5 {[%emt 0:02:41]} b3 {[%emt 0:01:33]} 34. Qxe5 {[%emt 0:03:49]} Nd3 {[%emt 0:04:28]} 35. Qe8+ {[%emt 0:02:42]} Kh7 {[%emt 0:00:08]} 36. Qxf7 {[%emt 0:00:31]} b2 {[%emt 0:00:49]} 37. Qf5+ {[%emt 0:00:17]} Kh8 {[%emt 0:00:08]} 0-1

[Event "ISR-ch Women 2018"]
[Site "Ma'alot-Tarshih"]
[Date "2018.12.13"]
[Round "2"]
[White "Shaul Zeidner, Lyad"]
[Black "Katkov, Michelle"]
[Result "0-1"]
[ECO "C27"]
[WhiteElo "1671"]
[BlackElo "1887"]
[Annotator "NA"]
[PlyCount "50"]
[EventDate "2018.12.12"]
[EventType "swiss"]
[EventCountry "ISR"]
[SourceTitle "playchess.com"]
[Source "ChessBase"]
[SourceQuality "1"]
[TimeControl "40/5400+30:1800+30"]

1. e4 {[%emt 0:00:00]} e5 {[%emt 0:00:00]} 2. Bc4 {[%emt 0:00:00]} Bc5 {[%emt 0:01:21]} 3. Nc3 {[%emt 0:04:13]} Nf6 {[%emt 0:01:36]} 4. d3 {[%emt 0:01:32]} d6 {[%emt 0:00:38]} 5. h3 {[%emt 0:00:36]} h6 {[%emt 0:01:23]} 6. f4 {[%emt 0:01:10]} Nc6 {[%emt 0:05:16]} 7. Na4 {[%emt 0:19:50]} Nxe4 {[%emt 0:04:55]} 8. Nf3 {[%emt 0:13:25]} Nf2 {[%emt 0:01:56]} 9. Qe2 {[%emt 0:16:15]} Nxh1 {[%emt 0:00:48]} 10. Nxc5 {[%emt 0:04:55]} dxc5 $19 {[%emt 0:00:35]} 11. g4 {[%emt 0:08:59]} Qe7 {[%emt 0:07:03]} 12. fxe5 {[%emt 0:06:20]} h5 {[%emt 0:01:01]} 13. Bg5 {[%emt 0:12:44]} Qd7 {[%emt 0:03:20]} 14. O-O-O {[%emt 0:06:14]} hxg4 {[%emt 0:00:16]} 15. Rxh1 {[%emt 0:00:03]} gxf3 {[%emt 0:00:24]} 16. Qxf3 {[%emt 0:00:06]} Qf5 {[%emt 0:01:09]} 17. Qxf5 {[%emt 0:00:20]} Bxf5 {[%emt 0:00:05]} 18. h4 {[%emt 0:00:58]} Na5 {[%emt 0:01:26]} 19. Bd5 {[%emt 0:01:14]} c6 {[%emt 0:00:27]} 20. Bg2 {[%emt 0:00:19]} c4 {[%emt 0:00:19]} 21. d4 {[%emt 0:00:18]} Kd7 {[%emt 0:01:14]} 22. Rd1 {[%emt 0:00:30]} Be6 {[%emt 0:00:59]} 23. Bd2 {[%emt 0:00:48]} b6 {[%emt 0:00:08]} 24. Bg5 {[%emt 0:00:10]} Nb7 {[%emt 0:01:41]} 25. c3 {[%emt 0:00:32]} Raf8 {[%emt 0:00:17]} 0-1